bitfinex/quotes_ETHUSD_20251125
["timestamp","ask_amount","ask_price","bid_price","bid_amount"]
[1764044416032,0.002,2929.6,2928.9,6.82850216]
[1764044416402,0.4539,2929.6,2928.9,6.82850216]
[1764044416602,0.4539,2929.6,2928.9,3.41425108]
[1764044417010,0.4539,2929.6,2928.9,6.82850216]
[1764044417501,0.4539,2929.6,2928.9,3.41425108]
[1764044417915,0.4539,2929.6,2928.9,6.82850216]
[1764044419214,0.002,2929.6,2928.9,6.87310216]
[1764044420626,0.4758,2929.6,2928.9,6.82850216]
[1764044420926,0.4758,2929.6,2928.9,3.41425108]
[1764044422632,0.4758,2929.6,2928.9,6.82850216]
[1764044423102,0.002,2929.6,2928.9,6.87310216]
[1764044423728,0.002,2929.6,2929.0,0.0446]
[1764044423934,0.002,2929.6,2928.9,6.82850216]
[1764044424140,0.4758,2929.6,2928.9,6.82850216]
[1764044425006,0.4758,2929.6,2928.9,3.41425108]
[1764044429035,0.4758,2929.6,2928.9,6.82850216]
[1764044431131,0.4758,2929.6,2928.9,3.41425108]
[1764044431823,0.4758,2929.6,2928.3,0.0446]
[1764044432026,0.4758,2929.6,2928.4,7.04566806]
[1764044432221,0.32026426,2929.5,2928.4,7.04566806]
[1764044432442,0.32026426,2929.5,2928.5,0.0446]
[1764044432601,0.79406426,2929.5,2928.5,0.0446]
[1764044432807,0.4738,2929.5,2928.5,0.0446]
[1764044433013,0.4738,2929.4,2928.5,0.0446]
[1764044434445,0.4738,2929.4,2928.4,14.49607643]
[1764044434624,0.4738,2929.4,2928.4,10.46050209]
[1764044434802,0.4738,2929.4,2928.4,7.04566806]
[1764044435008,0.4738,2929.4,2928.4,10.50510209]
[1764044435503,0.4738,2929.4,2928.4,10.46050209]
[1764044435735,0.72759411,2929.6,2928.5,4.44107834]
[1764044435938,0.79428861,2929.5,2928.5,4.48567834]
[1764044436141,0.32048861,2929.4,2928.6,0.0446]
[1764044436437,0.4738,2929.5,2928.7,6.82896848]
[1764044436735,0.3205048,2929.4,2928.7,3.41448424]
[1764044437043,0.3205048,2929.4,2928.7,6.82896848]
[1764044437214,0.4738,2929.3,2928.7,3.41448424]
[1764044437405,0.4738,2929.3,2928.7,6.82896848]
[1764044438641,0.4738,2929.3,2928.5,6.82943486]
[1764044440439,0.4738,2929.3,2928.5,6.86358203]
[1764044440644,0.4738,2929.3,2928.5,10.32289946]
[1764044440947,0.4738,2929.5,2928.6,0.0446]
[1764044441245,0.32052834,2929.4,2928.6,0.0446]
[1764044442714,0.32052834,2929.4,2928.7,10.24345272]
[1764044442928,0.002,2929.6,2928.7,10.24345272]
[1764044443128,0.32053068,2929.5,2928.7,10.28805272]
[1764044443443,0.4758,2929.6,2928.7,10.28805272]
[1764044443643,0.3205311,2929.5,2928.8,0.621504]
[1764044443843,0.002,2929.6,2928.8,0.666104]
[1764044444141,0.79431964,2929.5,2928.8,0.216]
[1764044444346,0.4738,2929.5,2928.8,0.216]
[1764044444747,0.4738,2929.5,2928.9,6.82850216]
[1764044446148,0.4922,2929.0,2928.9,3.41425108]
[1764044446719,0.4738,2929.4,2928.9,6.87310216]
[1764044449551,0.002,2929.6,2928.9,6.91770216]
[1764044449766,0.4738,2929.5,2928.9,6.87310216]
[1764044450467,0.4738,2929.5,2928.9,6.82850216]
[1764044454724,0.002,2929.6,2928.9,6.82850216]
[1764044454964,0.002,2929.6,2928.9,6.87310216]
[1764044455453,0.4523,2929.6,2928.9,6.87310216]
[1764044455844,0.4523,2929.6,2928.9,10.8640765]
[1764044455845,0.002,2929.6,2928.9,10.8640765]
[1764044456055,0.32242633,2929.6,2928.9,14.27832758]
[1764044456370,0.002,2929.6,2928.9,14.32292758]
[1764044456658,0.32241723,2929.6,2928.9,14.32292758]
[1764044458072,0.002,2929.6,2928.9,14.32292758]
[1764044458364,0.002,2929.6,2929.0,0.07874134]
[1764044458579,0.002,2929.6,2929.5,0.0446]
[1764044459191,0.4765,2929.6,2929.3,0.216]
[1764044459644,0.461,2929.5,2929.4,3.41366832]
[1764044459998,0.9375,2929.6,2929.4,3.41366832]
[1764044460351,0.4765,2929.6,2929.4,6.82733664]
[1764044461267,0.4765,2929.6,2929.3,0.216]
[1764044461552,0.4745,2929.4,2929.3,3.62972648]
[1764044462780,0.9355,2929.4,2929.3,3.62972648]
[1764044463898,0.4745,2929.4,2929.3,3.62972648]
[1764044464787,0.9355,2929.4,2929.3,3.41372648]
[1764044465288,0.4745,2929.4,2929.2,3.4138616]
[1764044465655,0.4745,2929.4,2929.2,6.827763]
[1764044465857,0.4745,2929.4,2929.1,6.8280359]
[1764044466185,0.002,2929.6,2929.3,0.0446]
[1764044466889,0.002,2929.5,2929.3,0.0446]
[1764044467688,0.002,2929.5,2929.4,0.0446]
[1764044468276,0.002,2929.5,2929.4,3.45826832]
[1764044469557,0.002,2929.5,2929.4,3.71886832]
[1764044469757,0.002,2929.5,2929.4,8.14948334]
[1764044469981,0.002,2929.5,2929.4,8.15994666]
[1764044471186,0.002,2929.6,2929.4,11.12351098]
[1764044471393,0.002,2929.6,2929.5,0.52883951]
[1764044472489,0.002,2929.6,2929.5,3.94239131]
[1764044474972,0.002,2929.6,2929.5,4.04239131]
[1764044475168,0.002,2929.6,2929.5,4.0082558]
[1764044475992,0.002,2929.6,2929.5,3.9082558]
[1764044476982,0.002,2929.6,2929.5,4.04504137]
[1764044477778,0.002,2929.6,2929.5,4.00044137]
[1764044478510,0.002,2929.6,2929.5,4.04504137]
[1764044478706,0.002,2929.6,2929.5,4.00044137]
[1764044478907,0.002,2929.6,2929.5,4.21644137]
[1764044479202,0.002,2929.6,2929.5,4.29517688]
[1764044479604,0.002,2929.6,2929.5,4.26104137]
[1764044479907,0.002,2929.6,2929.5,4.21644137]
[1764044480694,0.002,2929.6,2929.5,4.00044137]
[1764044480893,0.002,2929.6,2929.5,4.21644137]
[1764044481810,0.002,2929.6,2929.5,3.59493737]
[1764044482008,0.002,2929.6,2929.5,3.84507288]
[1764044482209,0.002,2929.6,2929.5,3.81093737]
[1764044484120,0.002,2929.6,2929.5,3.80047288]
[1764044484296,0.002,2929.6,2929.5,3.76633737]
[1764044484822,0.002,2929.6,2929.5,3.81093737]
[1764044485710,0.002,2929.6,2929.5,3.55033737]
[1764044485913,0.9368,2929.6,2929.5,3.55033737]
[1764044486217,0.9368,2929.6,2929.5,3.76733737]
[1764044486423,0.9368,2929.6,2929.5,3.55133737]
[1764044486819,0.9368,2929.6,2929.5,0.001]
[1764044486994,0.9368,2929.6,2929.5,3.6305518]
[1764044488493,0.9368,2929.6,2929.5,0.217]
[1764044488713,0.9368,2929.6,2929.5,3.6305518]
[1764044489119,0.9368,2929.6,2929.5,0.217]
[1764044489593,0.9368,2929.6,2929.5,3.6305518]
[1764044489794,0.9368,2929.6,2929.5,0.217]
[1764044490526,0.002,2929.6,2929.5,3.6305518]
[1764044490714,0.9368,2929.6,2929.5,3.6305518]
[1764044491816,0.002,2929.6,2929.5,8.14712833]
[1764044492009,0.002,2929.6,2929.5,8.15759282]
[1764044492210,0.002,2929.6,2929.5,9.09439282]
[1764044494033,0.002,2929.6,2929.5,5.0174558]
[1764044494233,0.9368,2929.6,2929.5,3.4145518]
[1764044494524,0.9368,2929.6,2929.5,3.6305518]
[1764044495034,0.9368,2929.6,2929.5,3.4145518]
[1764044495205,0.9368,2929.6,2929.5,0.001]
[1764044499514,0.4848,2929.6,2929.5,0.001]
[1764044499710,0.002,2929.6,2929.5,0.001]
[1764044500330,0.4848,2929.6,2929.5,0.001]
[1764044500739,0.9368,2929.6,2929.5,0.001]
[1764044501744,0.9368,2929.6,2929.5,0.217]
[1764044502424,0.9368,2929.6,2929.5,3.6305518]
[1764044502641,0.9368,2929.6,2929.5,3.4145518]
[1764044502843,0.9368,2929.6,2929.5,0.001]
[1764044503032,1.12298941,2929.6,2929.5,0.217]
[1764044504131,1.12298941,2929.6,2929.5,0.001]
[1764044504916,0.4848,2929.6,2929.5,0.001]
[1764044505127,0.9368,2929.6,2929.5,0.001]
[1764044505348,0.9368,2929.6,2929.5,0.217]
[1764044505554,0.9368,2929.6,2929.5,0.001]
[1764044506825,0.4848,2929.6,2929.5,0.001]
[1764044507038,0.9368,2929.6,2929.5,0.001]
[1764044508963,0.9368,2929.6,2929.5,0.217]
[1764044511157,0.9368,2929.6,2929.5,0.001]
[1764044511468,0.9368,2929.6,2929.5,0.667104]
[1764044511469,0.002,2929.6,2929.5,0.667104]
[1764044511630,0.002,2929.6,2929.5,4.74404102]
[1764044511950,0.002,2929.6,2929.5,5.68084102]
[1764044512854,0.002,2929.6,2929.5,9.09439282]
[1764044514445,0.002,2929.6,2929.5,4.8014558]
[1764044514806,0.9128,2929.6,2929.5,0.001]
[1764044516432,0.4521,2929.6,2929.5,0.001]
[1764044516627,0.9382,2929.6,2929.5,0.217]
[1764044520279,0.9382,2929.6,2929.5,3.6305518]
[1764044520475,0.4521,2929.6,2929.5,0.001]
[1764044520772,0.9382,2929.6,2929.5,0.001]
[1764044522796,1.60792357,2929.6,2929.5,0.001]
[1764044526101,0.72559411,2929.4,2929.2,0.001]
[1764044526294,6.71513597,2929.3,2929.2,0.001]
[1764044526512,7.20123597,2929.3,2929.2,0.001]
[1764044526810,6.97123597,2929.3,2929.2,0.001]
[1764044527014,7.66835957,2929.3,2929.2,0.001]
[1764044527168,31.47299117,2929.3,2929.2,0.001]
[1764044527493,35.62340204,2929.3,2929.2,0.001]
[1764044527667,22.48375318,2929.3,2929.2,0.001]
[1764044527870,20.33221018,2929.3,2929.2,0.001]
[1764044528070,1.13109811,2929.2,2928.9,0.001]
[1764044528268,17.85014711,2929.0,2928.9,0.001]
[1764044528494,17.85014711,2929.0,2928.1,0.001]
[1764044528495,19.389992,2928.9,2928.1,0.001]
[1764044528668,0.6811,2928.2,2928.1,0.001]
[1764044529291,1.1672,2928.2,2928.1,0.001]
[1764044530525,13.36433311,2928.2,2928.1,0.001]
[1764044530739,13.36433311,2928.2,2927.9,0.001]
[1764044530740,0.72559411,2928.1,2927.9,0.001]
[1764044530938,8.34153,2927.9,2927.6,0.001]
[1764044531075,0.6212,2927.7,2927.6,0.001]
[1764044531380,4.01726711,2927.7,2927.6,0.001]
[1764044531579,1.83289411,2927.7,2927.6,0.001]
[1764044531775,2.01618352,2927.7,2927.6,0.001]
[1764044531976,0.6212,2927.7,2927.6,0.001]
[1764044532203,0.4861,2928.0,2927.6,0.001]
[1764044532577,0.1958,2928.2,2927.6,0.217]
[1764044532779,0.4861,2928.4,2927.6,0.217]
[1764044533652,0.4861,2928.4,2927.7,6.83130102]
[1764044533824,0.4861,2928.4,2927.7,3.63165051]
[1764044534320,0.4861,2928.4,2927.7,7.04730102]
[1764044534479,0.4861,2928.4,2927.8,0.03415533]
[1764044534685,0.4861,2928.7,2927.8,0.0476]
[1764044534903,1.21169411,2928.7,2927.8,0.0476]
[1764044535088,0.4861,2928.7,2927.8,0.0476]
[1764044535430,0.72559411,2928.7,2927.7,6.83130102]
[1764044535597,0.72559411,2928.7,2927.8,0.216]
[1764044535598,3.08958011,2928.5,2927.8,0.216]
[1764044535794,0.72559411,2928.5,2927.8,0.216]
[1764044536029,0.6811,2927.9,2927.6,0.001]
[1764044536325,0.4853,2927.7,2927.6,0.001]
[1764044537033,0.9714,2927.7,2927.6,0.001]
[1764044540165,18.55950211,2927.7,2927.6,0.001]
[1764044540330,20.93817648,2927.7,2927.6,0.001]
[1764044540528,15.29937448,2927.7,2927.4,0.001]
[1764044540871,14.054557,2927.2,2927.1,0.001]
[1764044541009,16.60910956,2927.2,2927.1,0.001]
[1764044541210,16.60910956,2927.2,2926.8,0.001]
[1764044541211,0.72559411,2927.0,2926.8,0.001]
[1764044541513,6.27110511,2926.9,2926.8,0.001]
[1764044541745,1.39039411,2926.9,2926.8,0.001]
[1764044541922,1.85719411,2926.9,2926.8,0.001]
[1764044542133,1.1316,2926.9,2926.8,0.001]
[1764044542367,0.1899,2927.2,2926.8,0.001]
[1764044542525,0.1899,2927.2,2926.8,0.0516]
[1764044543465,0.4749,2926.9,2926.8,0.001]
[1764044543966,0.9417,2926.9,2926.8,0.001]
[1764044544757,0.4749,2926.9,2926.8,0.001]
[1764044545056,0.9417,2926.9,2926.8,0.001]
[1764044545845,6.18878311,2926.9,2926.8,0.001]
[1764044546040,5.79250842,2926.9,2926.8,0.001]
[1764044546428,4.79950842,2926.9,2926.8,0.001]
[1764044547847,4.44876342,2926.9,2926.8,0.001]
[1764044548048,1.20049411,2926.9,2926.8,0.001]
[1764044548250,9.86621211,2926.9,2926.8,0.001]
[1764044549223,20.97321671,2926.9,2926.8,0.001]
[1764044549427,26.079626,2926.7,2926.6,0.001]
[1764044549745,0.72559411,2926.1,2925.1,3.47027321]
[1764044549928,15.540953,2925.9,2924.9,3.41891244]
[1764044550130,15.540953,2925.9,2924.7,3.69266754]
[1764044550131,14.153953,2925.9,2925.0,3.41880196]
[1764044550328,14.620753,2925.9,2924.9,3.41887392]
[1764044550533,15.34634711,2925.9,2924.8,3.41900846]
[1764044550728,22.713111,2925.7,2924.5,0.001]
[1764044551046,0.4749,2924.9,2924.5,3.42037431]
[1764044551243,0.72559411,2925.4,2924.5,3.42037431]
[1764044551446,0.72559411,2925.4,2924.5,0.001]
[1764044551447,0.72559411,2925.2,2924.5,0.001]
[1764044551627,0.4668,2925.3,2924.5,0.001]
[1764044551824,0.4668,2925.2,2924.5,0.001]
[1764044554497,4.970542,2924.6,2924.5,0.001]
[1764044554668,5.69613611,2924.6,2924.5,0.001]
[1764044554872,4.63689072,2924.6,2924.5,0.001]
[1764044555058,2.23690772,2924.6,2924.5,0.001]
[1764044555389,1.20049411,2924.6,2924.5,0.001]
[1764044555804,7.38171011,2924.6,2924.5,0.001]
[1764044556088,1.66729411,2924.6,2924.5,0.001]
[1764044556271,4.03097711,2924.6,2924.5,0.001]
[1764044556657,1.20049411,2924.6,2924.5,0.001]
[1764044556863,0.72559411,2924.6,2924.5,0.001]
[1764044557109,0.72559411,2924.6,2924.5,0.0576]
[1764044557305,0.72559411,2924.6,2924.5,0.001]
[1764044557613,0.72559411,2924.6,2924.5,0.0576]
[1764044558212,0.72559411,2924.6,2924.5,3.47698792]
[1764044558501,0.217,2925.1,2924.5,3.47698792]
[1764044559107,0.4668,2925.2,2924.5,3.47698792]
[1764044559579,0.4668,2925.6,2924.5,6.89637584]
[1764044559902,0.72559411,2925.3,2924.5,0.0576]
[1764044560056,0.72559411,2925.1,2924.5,0.001]
[1764044560259,0.217,2925.3,2924.5,3.42038474]
[1764044560485,0.217,2925.3,2924.5,6.83977266]
[1764044560686,0.6838,2925.3,2924.5,3.42038474]
[1764044560889,0.72559411,2925.1,2924.5,0.001]
[1764044561089,0.4668,2925.0,2924.5,3.42036863]
[1764044561293,0.217,2925.3,2924.5,6.83975655]
[1764044561495,0.217,2925.3,2924.9,0.0566]
[1764044561710,1.19239411,2925.7,2924.9,0.0566]
[1764044561917,1.10817357,2925.7,2925.0,6.83760682]
[1764044562191,1.83376768,2925.7,2925.0,6.83760682]
[1764044563117,1.83376768,2925.7,2925.0,3.41880341]
[1764044563278,1.83376768,2925.7,2925.0,6.83760682]
[1764044563872,1.83376768,2925.7,2924.9,6.8378406]
[1764044564120,0.72559411,2925.7,2924.9,6.8378406]
[1764044564464,0.72559411,2925.7,2925.0,0.217]
[1764044564718,0.72559411,2925.7,2925.0,0.2736]
[1764044565007,4.089248,2926.3,2925.6,0.0566]
[1764044565309,0.72559411,2926.1,2925.6,0.0566]
[1764044565611,0.4668,2926.2,2925.6,0.0566]
[1764044565771,1.64254896,2926.3,2925.6,0.0566]
[1764044565970,1.64254896,2926.3,2925.6,6.89276279]
[1764044566170,0.6648,2925.7,2924.8,3.41894312]
[1764044566373,0.6648,2925.7,2924.9,0.217]
[1764044566801,0.6648,2925.7,2925.0,0.217]
[1764044567371,0.1899,2925.9,2925.1,0.0566]
[1764044567607,0.4668,2926.2,2925.1,0.0566]
[1764044567913,0.4668,2926.3,2925.2,10.25570901]
[1764044568265,0.4668,2926.6,2925.3,0.0566]
[1764044568911,0.6838,2926.9,2925.3,0.0566]
[1764044569216,0.6838,2926.9,2925.4,5.65787938]
[1764044569217,0.31790905,2926.8,2925.4,5.65787938]
[1764044569370,0.4668,2926.8,2925.5,0.217]
[1764044569572,0.1899,2927.0,2925.5,0.2736]
[1764044569808,0.97458861,2927.0,2925.6,0.0566]
[1764044570005,0.72559411,2926.8,2925.7,10.25395629]
[1764044570212,0.002,2927.1,2925.7,13.67194172]
[1764044570372,0.4565,2927.1,2925.8,0.0566]
[1764044570973,0.72559411,2926.9,2925.8,0.0566]
[1764044571237,0.62281441,2926.9,2925.9,0.217]
[1764044571417,0.4545,2926.9,2925.9,0.217]
[1764044572100,0.4545,2926.9,2926.0,6.83526998]
[1764044572595,0.4565,2926.9,2926.0,6.83526998]
[1764044573005,0.4565,2926.9,2926.0,10.30950497]
[1764044573310,0.4565,2926.9,2926.1,0.0566]
[1764044573502,0.002,2926.9,2926.1,0.0566]
[1764044575133,0.002,2926.9,2926.2,6.8348028]
[1764044575538,0.4565,2926.9,2925.8,0.0566]
[1764044575706,0.54879416,2926.8,2925.9,0.217]
[1764044575906,0.54879416,2926.8,2925.9,3.63475032]
[1764044576136,0.54879416,2926.8,2925.9,7.05250212]
[1764044576337,0.54879416,2926.8,2925.9,7.10910212]
[1764044577206,1.04159416,2926.8,2925.9,7.10910212]
[1764044577957,0.002,2926.9,2926.7,0.0566]
[1764044578098,0.002,2926.9,2926.5,0.217]
[1764044578299,0.002,2926.9,2926.0,0.78219411]
[1764044578300,0.002,2926.9,2926.4,0.217]
[1764044578513,0.4948,2926.9,2926.4,0.217]
[1764044579445,0.4948,2926.9,2926.5,3.41705108]
[1764044579629,0.002,2926.9,2926.5,6.83410216]
[1764044580239,0.002,2926.9,2926.5,3.41705108]
[1764044580746,0.002,2926.9,2926.4,3.41713323]
[1764044580950,0.4886,2926.5,2926.4,3.41713323]
[1764044581843,0.4928,2926.7,2926.3,3.41728462]
[1764044582554,5.0314416,2926.8,2926.3,6.83456924]
[1764044583022,5.0314416,2926.8,2926.7,0.0566]
[1764044583642,5.0314416,2926.8,2926.7,3.63381757]
[1764044584031,5.0314416,2926.8,2926.7,3.41681757]
[1764044584735,5.0314416,2926.8,2926.7,3.47341757]
[1764044585119,5.0314416,2926.8,2926.7,3.69041757]
[1764044585315,5.5200416,2926.8,2926.3,3.41728462]
[1764044585516,5.5200416,2926.8,2926.3,6.83456924]
[1764044585830,6.63341576,2926.8,2926.4,6.83422984]
[1764044586036,6.63341576,2926.8,2926.4,3.63406199]
[1764044586557,6.63341576,2926.8,2926.4,7.05122984]
[1764044586755,6.0128416,2926.8,2926.4,7.05122984]
[1764044587126,6.0128416,2926.8,2926.4,6.83422984]
[1764044587361,6.0128416,2926.8,2926.4,7.05122984]
[1764044587653,0.4928,2926.7,2926.4,0.217]
[1764044588033,5.5200416,2926.8,2926.4,0.217]
[1764044588034,5.0314416,2926.8,2926.4,0.217]
[1764044588355,6.09595576,2926.8,2926.4,0.217]
[1764044588765,5.60315576,2926.8,2926.4,0.217]
[1764044588958,0.4928,2926.7,2926.3,0.217]
[1764044589761,0.4928,2926.7,2926.4,3.41716785]
[1764044591268,0.4886,2926.5,2925.9,6.8355036]
[1764044591472,0.4886,2926.4,2925.9,6.8355036]
[1764044591675,0.4886,2926.4,2926.0,0.217]
[1764044591979,0.4928,2926.3,2926.0,0.217]
[1764044592184,1.84747969,2926.7,2926.0,0.217]
[1764044592353,0.68809213,2926.6,2926.0,0.217]
[1764044592560,1.18089213,2926.6,2926.0,0.217]
[1764044592759,0.4928,2926.5,2926.0,0.217]
[1764044593268,0.4886,2926.1,2925.8,0.001]
[1764044593661,0.9814,2926.1,2925.8,0.218]
[1764044593893,1.18089213,2926.6,2925.9,6.8355036]
[1764044594057,0.68344862,2926.5,2925.9,6.8355036]
[1764044594561,0.4928,2926.4,2925.9,6.8355036]
[1764044594754,0.68809213,2926.6,2925.9,6.8355036]
[1764044594954,0.68809213,2926.6,2925.9,10.2532554]
[1764044595193,1.18089213,2926.6,2925.9,6.8355036]
[1764044595782,1.18089213,2926.6,2925.9,10.28743291]
[1764044595955,0.72559411,2926.7,2925.9,10.2532554]
[1764044596305,5.5262416,2926.8,2925.9,10.2532554]
[1764044596306,0.002,2926.8,2926.6,0.0566]
[1764044596494,0.002,2926.8,2926.7,0.2736]
[1764044596859,0.002,2926.8,2926.7,0.3302]
[1764044597397,0.002,2926.9,2926.8,0.405504]
[1764044597609,0.002,2926.9,2926.8,0.735704]
[1764044598131,0.002,2927.4,2926.8,7.66910566]
[1764044598411,0.002,2927.4,2927.0,0.462104]
[1764044598988,0.002,2927.4,2927.0,0.735704]
[1764044599990,0.002,2927.4,2927.0,3.52966737]
[1764044600233,0.002,2927.4,2927.0,3.41646737]
[1764044600523,0.9448,2927.1,2926.4,6.8343357]
[1764044600677,0.9448,2927.1,2926.5,0.217]
[1764044600678,0.4785,2926.9,2926.5,0.217]
[1764044600876,0.4785,2926.9,2926.4,6.8343357]
[1764044601080,0.1903,2926.8,2926.6,0.217]
[1764044601348,0.1903,2926.8,2926.4,6.8343357]
[1764044601617,0.4785,2926.5,2926.4,3.41716785]
[1764044601822,0.4785,2926.5,2926.4,3.63416785]
[1764044601982,0.4643,2926.7,2925.9,0.72559411]
[1764044602188,0.4643,2926.7,2926.0,0.217]
[1764044602628,0.4643,2926.7,2926.0,0.25117634]
[1764044602831,0.4643,2926.7,2926.0,0.217]
[1764044603401,0.4643,2926.7,2926.0,0.25117634]
[1764044603730,0.1903,2926.8,2926.0,0.25117634]
[1764044603934,0.1903,2926.8,2926.0,0.30777634]
[1764044604138,0.1903,2926.8,2926.1,10.25255457]
[1764044605425,0.6546,2926.8,2926.1,10.25255457]
[1764044605937,0.1903,2926.8,2926.2,0.217]
[1764044606141,0.1903,2926.8,2926.3,6.83456924]
[1764044606454,0.1903,2926.8,2926.3,10.25185386]
[1764044607151,0.4663,2927.1,2926.3,10.30845386]
[1764044607455,0.002,2926.9,2926.3,10.25185386]
[1764044608155,0.002,2926.9,2926.5,6.83410216]
[1764044608355,0.002,2926.9,2926.6,0.25116934]
[1764044608863,0.002,2926.9,2926.8,0.0566]
[1764044609332,0.6708,2926.9,2926.2,6.83479597]
[1764044609664,0.6708,2926.9,2926.3,0.217]
[1764044609665,0.6566,2926.9,2926.3,0.217]
[1764044610338,0.6566,2926.9,2926.4,6.8343357]
[1764044610933,0.4643,2926.8,2926.4,6.8343357]
[1764044612951,0.4643,2926.8,2926.5,0.217]
[1764044613139,0.4785,2926.6,2926.5,0.217]
[1764044614454,0.4643,2926.8,2926.5,0.217]
[1764044614839,0.002,2926.9,2926.7,0.0566]
[1764044615253,0.4785,2926.8,2926.1,6.83503638]
[1764044615464,0.4785,2926.7,2926.1,6.83503638]
[1764044615674,0.4785,2926.7,2926.2,0.217]
[1764044616333,0.9428,2926.7,2926.2,0.217]
[1764044616536,0.4643,2926.6,2926.3,0.217]
[1764044616970,0.4785,2926.4,2926.1,3.41751819]
[1764044617131,0.4785,2926.4,2926.3,0.217]
[1764044617742,1.38219411,2926.9,2926.3,0.2736]
[1764044618075,1.38219411,2926.9,2926.4,0.03417167]
[1764044618281,1.38219411,2926.9,2926.3,0.2736]
[1764044618282,2.02375768,2926.9,2926.3,0.2736]
[1764044618768,1.38219411,2926.9,2926.3,0.2736]
[1764044618939,0.72759411,2926.9,2926.4,10.25150355]
[1764044620590,0.72759411,2926.9,2926.4,6.8343357]
[1764044620966,0.91789411,2926.9,2926.4,6.8343357]
[1764044621316,0.4785,2926.5,2926.1,6.83499876]
[1764044621451,0.4643,2926.8,2926.1,6.83499876]
[1764044621758,0.4643,2926.7,2926.2,0.217]
[1764044622678,0.4643,2926.7,2926.3,0.217]
[1764044623200,0.4643,2926.7,2926.0,0.001]
[1764044623201,0.66203277,2926.7,2926.0,0.001]
[1764044623351,0.4785,2926.1,2926.0,3.63561107]
[1764044623681,0.4785,2926.1,2926.0,0.001]
[1764044623905,0.9428,2926.1,2926.0,0.001]
[1764044626190,8.70712511,2926.1,2926.0,0.001]
[1764044626366,9.9190705,2926.1,2926.0,0.001]
[1764044626750,14.9442615,2926.1,2926.0,0.001]
[1764044626975,13.3920575,2926.1,2926.0,0.001]
[1764044627183,11.3147705,2926.1,2926.0,0.001]
[1764044627378,16.7517161,2926.1,2926.0,0.001]
[1764044627578,20.16923429,2926.1,2926.0,0.001]
[1764044627808,27.25135529,2926.1,2926.0,0.001]
[1764044628307,18.0010451,2926.1,2926.0,0.001]
[1764044628619,10.2037811,2926.1,2926.0,0.001]
[1764044628821,11.58660922,2926.1,2926.0,0.001]
[1764044628981,11.45510252,2926.1,2926.0,0.001]
[1764044629789,13.13310552,2926.1,2926.0,0.001]
[1764044629991,7.91150152,2926.1,2926.0,0.001]
[1764044630592,7.59224822,2926.1,2926.0,0.001]
[1764044631397,6.23553571,2926.1,2926.0,0.001]
[1764044631815,5.0314416,2926.1,2926.0,0.001]
[1764044632184,5.75703571,2926.1,2926.0,0.001]
[1764044633004,0.72559411,2926.1,2926.0,0.001]
[1764044634483,0.217,2926.3,2926.0,0.001]
[1764044634715,0.217,2926.7,2926.0,0.0576]
[1764044635019,0.6994,2926.7,2926.0,0.0576]
[1764044635598,0.4824,2926.6,2926.0,0.001]
[1764044636119,0.4824,2926.6,2926.0,3.41861349]
[1764044637215,0.4824,2926.6,2926.0,0.001]
[1764044637424,0.4824,2926.6,2926.0,3.41859664]
[1764044637719,0.4824,2926.6,2926.0,0.001]
[1764044637922,0.4852,2926.1,2926.0,0.001]
[1764044638322,0.9411,2926.1,2926.0,0.001]
[1764044639419,0.4852,2926.1,2926.0,0.001]
[1764044639592,0.4559,2926.4,2926.0,0.001]
[1764044639793,0.4852,2926.1,2926.0,0.001]
[1764044640594,0.4559,2926.4,2926.0,0.001]
[1764044642514,0.4852,2926.1,2926.0,0.001]
[1764044642734,0.4559,2926.4,2926.0,0.001]
[1764044643841,0.217,2926.7,2926.0,0.001]
[1764044645141,0.91789411,2926.9,2926.1,0.0566]
[1764044645441,0.91789411,2926.9,2926.6,0.0566]
[1764044645945,0.002,2926.9,2926.7,3.41681757]
[1764044646140,0.72759411,2926.9,2926.7,3.41681757]
[1764044646847,0.72759411,2926.9,2926.8,0.1132]
[1764044646848,0.002,2926.9,2926.8,0.1132]
[1764044648044,0.002,2927.1,2926.9,0.405504]
[1764044648343,0.002,2927.1,2927.0,0.735704]
[1764044649146,0.002,2927.1,2927.0,0.1132]
[1764044649315,0.002,2927.1,2927.0,0.3302]
[1764044650256,0.002,2927.1,2927.0,3.74666737]
[1764044651228,0.002,2927.1,2927.0,3.52966737]
[1764044651428,0.002,2927.1,2927.0,3.74666737]
[1764044652160,0.002,2927.1,2927.0,3.47306737]
[1764044652467,0.002,2927.1,2927.0,3.69006737]
[1764044653756,0.002,2927.1,2927.0,3.47306737]
[1764044653982,0.002,2927.1,2927.0,3.69006737]
[1764044654436,0.002,2927.1,2927.0,3.74666737]
[1764044655269,0.002,2927.1,2927.0,3.69006737]
[1764044655843,0.002,2927.1,2927.0,3.74666737]
[1764044656244,0.002,2927.1,2927.0,3.78083204]
[1764044656756,0.002,2927.1,2927.0,3.74666737]
[1764044657340,0.002,2927.1,2927.0,3.69006737]
[1764044658988,0.002,2927.1,2927.0,3.63346737]
[1764044659864,0.002,2927.1,2927.0,3.41646737]
[1764044660068,0.4613,2927.1,2927.0,3.63346737]
[1764044660646,0.002,2927.1,2927.0,3.63346737]
[1764044660878,0.4613,2927.1,2927.0,3.63346737]
[1764044661258,0.9296,2927.1,2926.9,3.63352848]
[1764044661445,0.4593,2927.0,2926.9,3.41652848]
[1764044661650,0.4593,2927.0,2926.9,3.63352848]
[1764044661978,0.9276,2927.0,2926.9,3.63352848]
[1764044662176,0.9276,2927.0,2926.9,3.41652848]
[1764044663765,0.9276,2927.0,2926.6,0.001]
[1764044663944,0.4593,2926.7,2926.6,0.001]